lending/lending_fUSD_20250819
["ID","MTS","AMOUNT","RATE_DAILY","PERIOD"]
[380284905,1755632504931,-2000.0,0.00041096,120]
[380284906,1755632505040,-2000.0,0.00041096,120]
[380284907,1755632505132,-2000.0,0.00041096,120]
[380284908,1755632505222,-2000.0,0.00041096,120]
[380284909,1755632505316,-2000.0,0.00041096,120]
[380284910,1755632505407,-2000.0,0.00041096,120]
[380284911,1755632505499,-2000.0,0.00041096,120]
[380284912,1755632505592,-2000.0,0.00041096,120]
[380284913,1755632505680,-2000.0,0.00041096,120]
[380284914,1755632505769,-2000.0,0.00041096,120]
[380284915,1755632505857,-2000.0,0.00041096,120]
[380284916,1755632505945,-2000.0,0.00041096,120]
[380284917,1755632506031,-409.0,0.00041096,120]
[380284918,1755632506123,-600.0,0.00041096,120]
[380284919,1755632506211,-2000.0,0.00041096,120]
[380284920,1755632506302,-2000.0,0.00041096,120]
[380284921,1755632506394,-3183.12,0.00041096,120]
[380284922,1755632506485,-2000.0,0.00041096,120]
[380284923,1755632506573,-2000.0,0.00041096,120]
[380284924,1755632506664,-2000.0,0.00041096,120]
[380284925,1755632506752,-2000.0,0.00041096,120]
[380284926,1755632506837,-2000.0,0.00041096,120]
[380284927,1755632506923,-2000.0,0.00041096,120]
[380284928,1755632507012,-2000.0,0.00041096,120]
[380284929,1755632507107,-2000.0,0.00041096,120]
[380284930,1755632507208,-2000.0,0.00041096,120]
[380284931,1755632507303,-2000.0,0.00041096,120]
[380284932,1755632508186,500.0,0.00039999,120]
[380284933,1755632508380,500.0,0.00039999,120]
[380284934,1755632508565,500.0,0.00039999,120]
[380284935,1755632508824,500.0,0.00039999,120]
[380284936,1755632509433,500.0,0.00039999,120]
[380284937,1755632509735,500.0,0.00039999,120]
[380284938,1755632510003,308.44635776,0.00039999,120]
[380284939,1755632514153,150.0,0.00040813,120]
[380284940,1755632514282,2222.22,0.000355,60]
[380284941,1755632514413,2222.22,0.0003775,60]
[380284942,1755632514626,2222.22,0.0004,60]
[380284943,1755632515013,157.05778575,0.00033532,60]
[380284944,1755632515176,157.05778575,0.00039121,60]
[380284945,1755632517152,1473.1222,0.0004,120]
[380284947,1755632517896,330.0525627,0.0003,120]
[380284948,1755632524717,154.9,0.00041095,60]
[380284949,1755632525791,1000.0,0.0004109,60]
[380284950,1755632527209,153.65205854,0.00041096,60]
[380284951,1755632527682,300.0,0.00041096,60]
[380284952,1755632527776,160.0,0.00041096,60]
[380284953,1755632528353,311.1,0.00041096,60]
[380284954,1755632529699,160.0,0.00041096,60]
[380284955,1755632529805,161.0,0.00040274,90]
[380284956,1755632529922,201.87405514,0.00041096,60]
[380284957,1755632530070,322.6107,0.00041096,60]
[380284958,1755632530256,160.0,0.00041096,60]
[380284959,1755632530384,600.0,0.00041096,60]
[380284960,1755632530560,334.5472959,0.00041096,60]
[380284961,1755632530731,600.0,0.00041096,60]
[380284962,1755632530927,160.0,0.00041096,60]
[380284963,1755632531038,346.92554585,0.00041096,60]
[380284964,1755632531132,151.0,0.00041096,60]
[380284965,1755632531248,600.0,0.00041096,60]
[380284966,1755632531417,160.0,0.00041096,60]
[380284967,1755632531533,359.76179104,0.00041096,60]
[380284968,1755632531622,156.587,0.00041096,60]
[380284969,1755632532113,373.07297731,0.00041096,60]
[380284970,1755632532205,600.0,0.00041096,60]
[380284971,1755632532314,162.380719,0.00041096,60]
[380284972,1755632532442,1031.1855,0.0004,120]
[380284973,1755632532879,160.0,0.00041096,60]
[380284974,1755632533009,600.0,0.00041096,60]
[380284975,1755632533113,168.3888056,0.00041096,60]
[380284976,1755632533356,160.0,0.00041096,60]
[380284977,1755632533480,386.87667747,0.00041096,60]
[380284978,1755632533584,600.0,0.00041096,60]
[380284979,1755632533848,174.61919141,0.00041096,60]
[380284980,1755632534040,160.0,0.00041096,60]
[380284981,1755632534183,401.19111454,0.00041096,60]
[380284982,1755632534274,600.0,0.00041096,60]
[380284983,1755632534402,181.08010149,0.00041096,60]
[380284984,1755632534544,160.0,0.00041096,60]
[380284985,1755632534753,416.03518578,0.00041096,60]
[380284986,1755632534846,600.0,0.00041096,60]
[380284987,1755632534954,187.78006525,0.00041096,60]
[380284988,1755632535105,160.0,0.00041096,60]
[380284989,1755632535301,431.42848765,0.00041096,60]
[380284990,1755632535395,600.0,0.00041096,60]
[380284991,1755632535547,194.72792766,0.00041096,60]
[380284992,1755632535712,160.0,0.00041096,60]
[380284993,1755632535919,447.3913417,0.00041096,60]
[380284994,1755632536020,600.0,0.00041096,60]
[380284995,1755632536135,201.93286099,0.00041096,60]
[380284996,1755632536348,160.0,0.00041096,60]
[380284997,1755632536623,600.0,0.00041096,60]
[380284998,1755632536767,209.40437684,0.00041096,60]
[380284999,1755632537029,160.0,0.00041096,60]
[380285000,1755632537164,463.94482134,0.00041096,60]
[380285001,1755632537262,600.0,0.00041096,60]
[380285002,1755632537392,600.0,0.00041096,60]
[380285003,1755632537521,217.15233878,0.00041096,60]
[380285004,1755632537854,600.0,0.00041096,60]
[380285005,1755632537948,481.11077973,0.00041096,60]
[380285006,1755632538068,600.0,0.00041096,60]
[380285007,1755632538169,160.0,0.00041096,60]
[380285008,1755632538291,225.18697532,0.00041096,60]
[380285009,1755632538460,600.0,0.00041096,60]
[380285010,1755632538568,498.91187858,0.00041096,60]
[380285011,1755632538670,600.0,0.00041096,60]
[380285012,1755632538782,160.0,0.00041096,60]
[380285013,1755632538924,233.51889341,0.00041096,60]
[380285014,1755632539148,600.0,0.00041096,60]
[380285015,1755632539364,600.0,0.00041096,60]
[380285016,1755632539492,160.0,0.00041096,60]
[380285017,1755632539600,242.15909246,0.00041096,60]
[380285018,1755632540921,408.74576377,0.00041096,60]
[380285019,1755632541089,600.0,0.00041096,60]
[380285020,1755632541219,600.0,0.00041096,60]
[380285021,1755632541394,160.0,0.00041096,60]
[380285022,1755632541565,251.11897888,0.00041096,60]
[380285023,1755632541761,600.0,0.00041096,60]
[380285024,1755632541886,600.0,0.00041096,60]
[380285025,1755632542002,160.0,0.00041096,60]
[380285026,1755632542144,260.4103811,0.00041096,60]
[380285027,1755632542341,160.0,0.00041096,60]
[380285028,1755632542499,270.0455652,0.00041096,60]
[380285029,1755632542749,600.0,0.00041096,60]
[380285030,1755632542869,600.0,0.00041096,60]
[380285031,1755632543000,160.0,0.00041096,60]
[380285032,1755632543104,280.03725112,0.00041096,60]
[380285033,1755632544390,600.0,0.00041096,60]
[380285034,1755632544507,600.0,0.00041096,60]
[380285035,1755632544623,439.40896329,0.00041096,60]
[380285036,1755632544759,600.0,0.00041096,60]
[380285037,1755632544918,600.0,0.00041096,60]
[380285038,1755632545140,600.0,0.00041096,60]
[380285039,1755632545400,600.0,0.00041096,60]
[380285040,1755632545594,600.0,0.00041096,60]
[380285041,1755632546036,600.0,0.00041096,60]
[380285042,1755632546663,600.0,0.00041096,60]
[380285043,1755632547284,600.0,0.00041096,60]
[380285044,1755632548533,600.0,0.00041096,60]
[380285045,1755632549217,600.0,0.00041096,60]
[380285046,1755632549559,1877.3,0.00040618,120]
[380285047,1755632549893,600.0,0.00041096,60]
[380285048,1755632550575,600.0,0.00041096,60]
[380285049,1755632551739,150.0,0.00034953,120]
[380285050,1755632552075,600.0,0.00041096,60]
[380285051,1755632555842,200.0,0.00041096,60]
[380285052,1755632556438,207.4,0.00041096,60]
[380285053,1755632557428,215.0738,0.00041096,60]
[380285054,1755632557714,223.0315306,0.00041096,60]
[380285055,1755632558249,231.28369723,0.00041096,60]
[380285056,1755632558820,239.84119403,0.00041096,60]
[380285057,1755632559441,248.71531821,0.00041096,60]
[380285058,1755632559528,2222.22,0.00036322,60]
[380285059,1755632559627,165.02628135,0.0003,120]
[380285060,1755632559848,2222.22,0.00038709,60]
[380285061,1755632560075,257.91778498,0.00041096,60]
[380285062,1755632560689,267.46074303,0.00041096,60]
[380285063,1755632561326,277.35679052,0.00041096,60]
[380285064,1755632562530,287.61899177,0.00041096,60]
[380285065,1755632563752,298.26089446,0.00041096,60]
[380285066,1755632564436,309.29654756,0.00041096,60]
[380285067,1755632565655,320.74051982,0.00041096,60]
[380285068,1755632566262,721.8299,0.0004,120]
[380285069,1755632566351,500.0,0.00041055,120]
[380285070,1755632566441,332.60791905,0.00041096,60]
[380285071,1755632566939,344.91441206,0.00041096,60]
[380285072,1755632567622,357.6762453,0.00041096,60]
[380285073,1755632568813,370.91026638,0.00041096,60]
[380285074,1755632569501,384.63394623,0.00041096,60]
[380285075,1755632570368,157.05778576,0.00033532,60]
[380285076,1755632570643,398.86540225,0.00041096,60]
[380285077,1755632576587,1444.0,0.00029041,120]
[380285078,1755632576806,1444.0,0.00033973,120]
[380285079,1755632577041,264.29100754,0.00038904,90]
[380285080,1755632577128,204.27173316,0.00040548,120]
[380285081,1755632590072,160.0,0.00041096,60]
[380285082,1755632590708,160.0,0.00041096,60]
[380285083,1755632591339,160.0,0.00041096,60]
[380285084,1755632604037,-500.0,0.000265,120]
[380285085,1755632604421,-500.0,0.000285,120]
[380285086,1755632604610,-500.0,0.000305,120]
[380285087,1755632604779,-505.2809,0.0004,120]
[380285088,1755632604869,-2006.45144647,0.000411,120]
[380285089,1755632604953,-47031.97968686,0.0004144,120]
[380285090,1755632605037,-200.0,0.00041458,120]
[380285091,1755632605501,-8000.0,0.000415,120]
[380285092,1755632605592,-2250.0,0.000415,120]
[380285093,1755632605677,-1000.0,0.000415,120]
[380285094,1755632605760,-152.0,0.000416,120]
[380285095,1755632605849,-163.0,0.000416,120]
[380285096,1755632605930,-1754.17,0.000416,120]
[380285097,1755632606011,-1754.17,0.000416,120]
[380285098,1755632606095,-1754.17,0.000416,120]
[380285099,1755632606181,-585.62,0.00041643,120]
[380285100,1755632606267,-500.0,0.0004174,120]
[380285101,1755632606350,-26009.63756385,0.00041744,120]
[380285102,1755632606437,-2102.89760484,0.000418,120]
[380285103,1755632606519,-415639.00944076,0.0004188,120]
[380285104,1755632606598,-12088.28813638,0.000419,120]
[380285105,1755632606678,-62152.33245217,0.00041918,120]
[380285106,1755632606757,-1929.52848983,0.00042,120]
[380285107,1755632606836,-2500.0,0.00042,120]
[380285108,1755632606918,-850.0,0.00042,120]
[380285109,1755632606998,-250.0,0.00042,120]
[380285110,1755632607080,-757.92306365,0.00042,120]
[380285111,1755632607167,-3200.0,0.00042,120]
[380285112,1755632607250,-152.2398743,0.00042,120]
[380285113,1755632607339,-294701.34576822,0.00042,120]
[380285114,1755632607426,-10277.0,0.00042,120]
[380285115,1755632607512,-59904.0,0.00042,120]
[380285116,1755632607596,-519.24989145,0.00042121,120]
[380285117,1755632607679,-585.62,0.00042191,120]
[380285118,1755632607761,-585.83530348,0.00042209,120]
[380285119,1755632607844,-166013.48162165,0.000424,120]
[380285120,1755632607926,-3950.64036679,0.000424,120]
[380285121,1755632608010,-1781.4,0.00042465,120]
[380285122,1755632608091,-2750.0,0.000425,120]
[380285123,1755632608172,-50000.0,0.000425,120]
[380285124,1755632608259,-15403.09332326,0.000425,120]
[380285125,1755632608344,-195.650504,0.000425,120]
[380285126,1755632608429,-8000.0,0.000425,120]
[380285127,1755632608514,-152.0,0.000426,120]
[380285128,1755632608596,-163.0,0.000426,120]
[380285129,1755632608680,-585.62,0.00042739,120]
[380285130,1755632608764,-200.0,0.00042846,120]
[380285131,1755632608848,-50000.0,0.0004288,120]
[380285132,1755632608931,-259.30069101,0.00043,120]
[380285133,1755632609013,-208.47816355,0.00043,120]
[380285134,1755632609098,-194.34426161,0.00043,120]
[380285135,1755632609182,-30000.0,0.00043,120]
[380285136,1755632609266,-3000.0,0.00043,120]
[380285137,1755632609350,-10000.0,0.00043,120]
[380285138,1755632609435,-4967.1645831,0.00043,120]
[380285139,1755632609519,-20018.85537547,0.00043,120]
[380285140,1755632609601,-10000.0,0.00043,120]
[380285141,1755632609684,-43690.96145648,0.00043,120]
[380285142,1755632609767,-11371.53870523,0.00043,120]
[380285143,1755632609849,-500.0,0.00043,120]
[380285144,1755632609929,-3635.99685805,0.00043,120]
[380285145,1755632610013,-13268.0,0.00043,120]
[380285146,1755632610097,-4614.6829129,0.00043,120]
[380285147,1755632610184,-10000.0,0.00043,120]
[380285148,1755632610281,-10000.0,0.00043,120]
[380285149,1755632610366,-6781.21,0.00043,120]
[380285150,1755632610447,-1521.0,0.0004325,120]
[380285151,1755632610534,-585.62,0.00043287,120]
[380285152,1755632610616,-395.0,0.0004329,120]
[380285153,1755632610696,-8000.0,0.000435,120]
[380285154,1755632610776,-3000.0,0.000435,120]
[380285155,1755632610856,-1000.0,0.000435,120]
[380285156,1755632610935,-152.0,0.000435,120]
[380285157,1755632611014,-3500.0,0.000435,120]
[380285158,1755632611095,-163.0,0.000435,120]
[380285159,1755632611177,-12349.41602789,0.000437,120]
[380285160,1755632611259,-415.08147957,0.000438,120]
[380285161,1755632611339,-692.26176732,0.000438,120]
[380285162,1755632611419,-15522.23766172,0.000438,120]
[380285163,1755632611500,-53864.11098572,0.000438,120]
[380285164,1755632611583,-1052.50932774,0.000438,120]
[380285165,1755632611682,-993563.57844592,0.000438,120]
[380285166,1755632611763,-162.380719,0.00043835,120]
[380285167,1755632611847,-585.62,0.00043835,120]
[380285168,1755632611927,-1781.4,0.00043835,120]
[380285169,1755632612007,-175000.0,0.000439,120]
[380285170,1755632612084,-285123.753995,0.00044,120]
[380285171,1755632612171,-1000.0,0.00044,120]
[380285172,1755632612263,-50000.0,0.00044,120]
[380285173,1755632612344,-10336.91127946,0.00044,120]
[380285174,1755632612426,-1085.6975055,0.00044,120]
[380285175,1755632612512,-700.0,0.00044,120]
[380285176,1755632612594,-10000.0,0.00044,120]
[380285177,1755632612673,-365584.89255222,0.00044,120]
[380285178,1755632612751,-285260.16301084,0.00044,120]
[380285179,1755632612828,-16880.54263868,0.00044,120]
[380285180,1755632612906,-3599.26240751,0.00044,120]
[380285181,1755632612986,-97234.99731662,0.00044,120]
[380285182,1755632613069,-15346.38297686,0.00044,120]
[380285183,1755632613154,-4857.76837784,0.00044,120]
[380285184,1755632613239,-5300.86599361,0.00044,120]
[380285185,1755632613324,-20597.51514159,0.00044,120]
[380285186,1755632613410,-100000.0,0.00044,120]
[380285187,1755632613495,-100000.0,0.00044,120]
[380285188,1755632613577,-100000.0,0.00044,120]
[380285189,1755632613659,-100000.0,0.00044,120]
[380285190,1755632613742,-100000.0,0.00044,120]
[380285191,1755632613823,-100000.0,0.00044,120]
[380285192,1755632613904,-100000.0,0.00044,120]
[380285193,1755632613987,-100000.0,0.00044,120]
[380285194,1755632614075,-100000.0,0.00044,120]
[380285195,1755632614157,-100000.0,0.00044,120]
[380285196,1755632614239,-100000.0,0.00044,120]
[380285197,1755632614325,-8718.86194403,0.00044,120]
[380285198,1755632618348,666.18625258,3.6e-05,30]
[380285199,1755632673922,-150.0,0.00031315,120]
[380285200,1755632674099,-150.0,0.00037359,120]
[380285201,1755632674225,-5243.5,0.00038657,120]
[380285202,1755632674348,-2000.0,0.0004,120]
[380285203,1755632674447,-353.6966,0.0004,120]
[380285204,1755632674538,-5243.5,0.00040027,120]
[380285205,1755632674630,-409.0,0.00041096,120]
[380285206,1755632674723,-5243.5,0.00041397,120]
[380285207,1755632674817,-5243.5,0.00042767,120]
[380285208,1755632674910,-421.47159739,0.000438,120]
[380285209,1755632675399,-91281.13805597,0.00044,120]
[380285210,1755632675495,-100000.0,0.00044,120]
[380285211,1755632675593,-100000.0,0.00044,120]
[380285212,1755632675687,-100000.0,0.00044,120]
[380285213,1755632675783,-100000.0,0.00044,120]
[380285214,1755632675877,-100000.0,0.00044,120]
[380285215,1755632675971,-100000.0,0.00044,120]
[380285216,1755632676069,-100000.0,0.00044,120]
[380285217,1755632676166,-100000.0,0.00044,120]
[380285218,1755632676267,-1781.04936587,0.00044,120]
[380285219,1755632676371,-4000.0,0.00044,120]
[380285220,1755632676468,-4000.0,0.00044,120]
[380285221,1755632676561,-5243.5,0.00044136,120]
[380285222,1755632676652,-10000.0,0.00044233,120]
[380285223,1755632676742,-633.89,0.00044233,120]
[380285224,1755632676828,-62152.33345217,0.00044246,120]
[380285225,1755632676916,-1156.99343657,0.00044246,120]
[380285226,1755632677010,-585.62,0.00044383,120]
[380285227,1755632677102,-2148.3731895,0.0004439,120]
[380285228,1755632677194,-324035.18093762,0.000444,120]
[380285229,1755632677290,-163.0,0.000444,120]
[380285230,1755632677385,-36081.08133229,0.000444,120]
[380285231,1755632677476,-538.750315,0.0004444,120]
[380285232,1755632677566,-8000.0,0.000445,120]
[380285233,1755632677666,-8000.0,0.000445,120]
[380285234,1755632677762,-407.06905404,0.000445,120]
[380285235,1755632677857,-10000.0,0.000445,120]
[380285236,1755632677953,-3000.0,0.000445,120]
[380285237,1755632678040,-1000.0,0.000445,120]
[380285238,1755632678132,-26106.8949981,0.00044545,120]
[380285239,1755632678220,-20183.22643633,0.000446,120]
[380285240,1755632678313,-15144.0,0.000448,120]
[380285241,1755632678407,-1020669.50328,0.000448,120]
[380285243,1755632678500,-585.62,0.00044931,120]
[380285244,1755632678590,-1092.40199439,0.00044999,120]
[380285245,1755632678680,-101567.47,0.00045,120]
[380285246,1755632678765,-2292.74904418,0.00045,120]
[380285247,1755632678850,-525.58864766,0.00045,120]
[380285248,1755632678934,-207.85086668,0.00045,120]
[380285249,1755632679020,-30000.0,0.00045,120]
[380285250,1755632679110,-3400.0,0.00045,120]
[380285251,1755632679198,-54392.6851855,0.00045,120]
[380285252,1755632679291,-200.0,0.00045,120]
[380285253,1755632679380,-2000.0,0.00045,120]
[380285254,1755632679471,-250000.0,0.00045,120]
[380285255,1755632679567,-250000.0,0.00045,120]
[380285256,1755632679661,-10000.0,0.00045,120]
[380285257,1755632679753,-10000.0,0.00045,120]
[380285258,1755632679845,-150.0,0.00045,120]
[380285259,1755632679934,-30000.0,0.00045,120]
[380285260,1755632680022,-10000.0,0.00045,120]
[380285261,1755632680111,-22893.01276838,0.00045,120]
[380285262,1755632680220,-47089.47684,0.00045,120]
[380285263,1755632680313,-1080.91,0.00045,120]
[380285264,1755632680410,-8580.68,0.00045,120]
[380285265,1755632680503,-48151.49,0.00045,120]
[380285266,1755632680596,-300.0,0.00045,120]
[380285267,1755632680684,-977.0,0.00045,120]
[380285268,1755632680772,-22097.67616906,0.00045,120]
[380285269,1755632680862,-83735.15907529,0.00045,120]
[380285270,1755632680949,-935998.92182778,0.00045,120]
[380285271,1755632681034,-29360.2353169,0.00045,120]
[380285272,1755632681123,-8053.64134128,0.00045,120]
[380285273,1755632681214,-441401.32029453,0.00045,120]
[380285274,1755632681311,-6132.79974523,0.00045,120]
[380285275,1755632681407,-5798.95544043,0.00045,120]
[380285276,1755632681497,-101164.58339186,0.00045,120]
[380285277,1755632689468,-916.0,0.00034921,120]
[380285278,1755632689577,-500.0,0.00039,120]
[380285279,1755632689689,-110595.6921872,0.00045,120]
[380285280,1755632689781,-5250.86475084,0.00045,120]
[380285281,1755632689872,-97316.48174706,0.00045,120]
[380285282,1755632689967,-6359.17539326,0.00045,120]
[380285283,1755632690062,-18018.78168039,0.00045,120]
[380285284,1755632690153,-3870779.3571798,0.00045,120]
[380285285,1755632690244,-1000.0,0.00045,120]
[380285286,1755632690338,-1144.23,0.00045,120]
[380285287,1755632690434,-241.58,0.00045,120]
[380285288,1755632690526,-7145.35488129,0.00045,120]
[380285289,1755632690625,-400.0,0.00045,120]
[380285290,1755632690718,-20981.83017432,0.00045,120]
[380285291,1755632690812,-3573.74073839,0.00045,120]
[380285292,1755632690905,-7880.77341738,0.00045,120]
[380285293,1755632690995,-13268.0,0.00045,120]
[380285294,1755632691090,-8400.0,0.00045,120]
[380285295,1755632691189,-31241.7,0.00045,120]
[380285296,1755632691287,-4500.0,0.00045,120]
[380285297,1755632691382,-77912.66,0.00045,120]
[380285298,1755632691476,-500.0,0.00045,120]
[380285299,1755632691569,-300.0,0.00045,120]
[380285300,1755632691659,-150.0,0.00045,120]
[380285301,1755632691755,-270.0,0.00045,120]
[380285302,1755632691844,-399.99,0.00045,120]
[380285303,1755632691934,-25500.0,0.00045,120]
[380285304,1755632692025,-9000.0,0.00045,120]
[380285305,1755632692113,-1781.4,0.00045205,120]
[380285306,1755632692202,-3012.54,0.000453,120]
[380285307,1755632692293,-163.0,0.000453,120]
[380285308,1755632692380,-3098.46,0.000454,120]
[380285309,1755632692470,-10000.0,0.00045467,120]
[380285310,1755632692559,-585.6357,0.00045479,120]
[380285311,1755632692647,-5981.61,0.00045479,120]
[380285312,1755632692734,-5981.61,0.00045479,120]
[380285313,1755632692822,-5981.61,0.00045479,120]
[380285314,1755632692910,-5981.61,0.00045479,120]
[380285315,1755632692998,-5981.61,0.00045479,120]
[380285316,1755632693089,-5981.61,0.00045479,120]
[380285317,1755632693173,-5981.61,0.00045479,120]
[380285318,1755632693258,-5981.61,0.00045479,120]
[380285319,1755632693352,-5981.61,0.00045479,120]
[380285320,1755632693451,-5981.61,0.00045479,120]
[380285321,1755632693548,-5981.61,0.00045479,120]
[380285322,1755632693642,-5981.61,0.00045479,120]
[380285323,1755632693735,-5981.61,0.00045479,120]
[380285324,1755632693827,-5981.61,0.00045479,120]
[380285325,1755632693916,-5981.61,0.00045479,120]
[380285326,1755632694003,-5981.61,0.00045479,120]
[380285327,1755632694094,-5981.61,0.00045479,120]
[380285328,1755632694185,-5981.61,0.00045479,120]
[380285329,1755632694277,-5981.61,0.00045479,120]
[380285330,1755632694373,-5981.61,0.00045479,120]
[380285331,1755632694461,-5981.61,0.00045479,120]
[380285332,1755632694564,-5981.61,0.00045479,120]
[380285333,1755632694656,-5981.61,0.00045479,120]
[380285334,1755632694748,-5981.67191809,0.00045479,120]
[380285335,1755632694837,-10000.0,0.000455,120]
[380285336,1755632694926,-250000.0,0.000455,120]
[380285337,1755632695025,-1000.0,0.000455,120]
[380285338,1755632695131,-5243.5,0.00045506,120]
[380285339,1755632695232,-500.0,0.0004555,120]
[380285340,1755632695333,-31391.0,0.000456,120]
[380285341,1755632695433,-1597.21926279,0.000457,120]
[380285342,1755632695538,-20000.0,0.000458,120]
[380285343,1755632695640,-50281.60936294,0.000458,120]
[380285344,1755632695733,-50000.0,0.0004588,120]
[380285345,1755632695822,-1500.0,0.0004588,120]
[380285346,1755632695909,-9444.2927882,0.0004589,120]
[380285347,1755632696016,-21525.0,0.00045896,120]
[380285348,1755632696108,-3058.73,0.000459,120]
[380285349,1755632696201,-23183.29493134,0.00046,120]
[380285350,1755632696291,-544.16008369,0.00046,120]
[380285351,1755632696382,-2141.24332102,0.00046,120]
[380285352,1755632696469,-10000.0,0.00046,120]
[380285353,1755632696555,-600.0,0.00046,120]
[380285354,1755632696642,-22244.000482,0.00046,120]
[380285355,1755632704313,-247.5876,0.0004,120]
[380285356,1755632704441,-150.0,0.00045479,120]
[380285357,1755632704554,-227755.999518,0.00046,120]
[380285358,1755632704670,-10000.0,0.00046,120]
[380285359,1755632704780,-208.26370325,0.00046,120]
[380285360,1755632704887,-279.36558573,0.00046,120]
[380285361,1755632704993,-100238.78692046,0.00046,120]
[380285362,1755632705102,-805418.61672045,0.00046,120]
[380285363,1755632705211,-21364.93487676,0.00046,120]
[380285364,1755632705324,-19650.86364227,0.00046,120]
[380285365,1755632705435,-3079.13795068,0.00046,120]
[380285366,1755632705547,-5057.27369449,0.00046,120]
[380285367,1755632705655,-6503.58125255,0.00046,120]
[380285368,1755632705759,-10000.0,0.000461,120]
[380285369,1755632705861,-3594.41548238,0.00046106,120]
[380285370,1755632705963,-10000.0,0.000462,120]
[380285371,1755632706069,-163.0,0.000462,120]
[380285372,1755632706176,-9185.98220091,0.00046222,120]
[380285373,1755632706280,-1673.19555379,0.00046224,120]
[380285374,1755632706398,-44705.28342103,0.00046229,120]
[380285375,1755632706504,-542.35783033,0.00046238,120]
[380285376,1755632706609,-62152.33345217,0.00046246,120]
[380285377,1755632706715,-568.02608018,0.00046247,120]
[380285378,1755632706822,-900.7644331,0.00046247,120]
[380285379,1755632706926,-1258.54237359,0.00046256,120]
[380285380,1755632707028,-1558.67844114,0.00046257,120]
[380285381,1755632707149,-1219.80509,0.00046263,120]
[380285382,1755632707260,-626.52805384,0.00046266,120]
[380285383,1755632707361,-44705.28342103,0.00046271,120]
[380285384,1755632707464,-568.02608018,0.00046277,120]
[380285385,1755632707568,-1673.19555379,0.00046283,120]
[380285386,1755632707671,-220.63071692,0.00046284,120]
[380285387,1755632707772,-1558.67844114,0.00046285,120]
[380285388,1755632707873,-959.23029203,0.00046287,120]
[380285389,1755632707975,-10000.0,0.000463,120]
[380285390,1755632708077,-5131.02281831,0.00046308,120]
[380285391,1755632708192,-1219.80509,0.00046309,120]
[380285392,1755632708303,-456.7107343,0.0004631,120]
[380285393,1755632708408,-1219.80509,0.00046313,120]
[380285394,1755632708511,-900.38444198,0.00046314,120]
[380285395,1755632708614,-1258.54237359,0.00046317,120]
[380285396,1755632708718,-900.7644331,0.00046321,120]
[380285397,1755632708818,-1219.80509,0.00046321,120]
[380285398,1755632708922,-626.52805384,0.00046328,120]
[380285399,1755632709025,-951.99631991,0.00046329,120]
[380285400,1755632709126,-6271.42051935,0.00046331,120]
[380285401,1755632709227,-28516.30080955,0.00046336,120]
[380285402,1755632709327,-542.35783033,0.00046344,120]
[380285403,1755632709432,-3801.26256392,0.00046346,120]
[380285404,1755632709533,-900.38444198,0.0004635,120]
[380285405,1755632709635,-456.7107343,0.0004635,120]
[380285406,1755632709735,-220.63071692,0.0004635,120]